bitfinex/quotes_SOLUSD_20250930
["timestamp","ask_amount","ask_price","bid_price","bid_amount"]
[1759224760895,2.22563537,207.84,207.78,5.01275822]
[1759224762092,2.22563537,207.82,207.78,0.2]
[1759224762592,2.22563537,207.81,207.78,0.2]
[1759224763489,2.22563537,207.83,207.78,0.2]
[1759224763701,2.22563537,207.83,207.78,5.0127683]
[1759224764206,2.22563537,207.82,207.78,0.2]
[1759224764406,2.22563537,207.81,207.78,0.2]
[1759224765594,2.22563537,207.82,207.78,5.01268589]
[1759224766102,13.59559401,207.85,207.78,5.01268589]
[1759224766103,2.22563537,207.85,207.78,5.01268589]
[1759224766586,13.59559401,207.85,207.78,5.01268589]
[1759224766786,2.22563537,207.81,207.78,0.2]
[1759224767212,2.22563537,207.8,207.78,0.2]
[1759224768397,7.03777997,207.81,207.78,0.2]
[1759224769599,2.22563537,207.81,207.78,0.2]
[1759224770410,4.81162488,207.83,207.78,0.2]
[1759224770411,15.82122938,207.8,207.78,0.2]
[1759224771500,4.81255113,207.79,207.78,0.2]
[1759224772004,7.0381865,207.79,207.78,0.2]
[1759224773314,20.63378051,207.79,207.78,0.2]
[1759224773514,18.40814514,207.79,207.78,0.2]
[1759224773717,20.63378051,207.79,207.78,0.2]
[1759224776815,54.33378051,207.79,207.78,0.2]
[1759224782417,20.63378051,207.79,207.78,0.2]
[1759224782601,54.35378051,207.79,207.78,0.2]
[1759224783627,77.37941588,207.79,207.78,0.2]
[1759224784628,91.85992752,207.79,207.78,0.2]
[1759224785821,75.13378051,207.79,207.78,0.2]
[1759224786527,41.43378051,207.79,207.78,0.2]
[1759224786738,72.90814514,207.79,207.78,0.2]
[1759224786906,47.31559401,207.79,207.78,0.2]
[1759224788434,4.81212074,207.81,207.78,0.2]
[1759224788735,47.31559401,207.8,207.78,0.2]
[1759224788918,49.54122938,207.8,207.78,0.2]
[1759224790013,54.35356682,207.8,207.78,0.2]
[1759224792611,49.52122938,207.79,207.78,0.2]
[1759224793440,25.61159725,207.84,207.78,0.2]
[1759224793734,13.59559401,207.82,207.78,0.2]
[1759224795913,18.40752338,207.82,207.78,0.2]
[1759224796931,2.22563537,207.8,207.78,0.2]
[1759224797234,7.0381865,207.79,207.78,0.2]
[1759224798928,4.81255113,207.79,207.78,0.2]
[1759224801520,52.12814514,207.79,207.78,0.2]
[1759224801736,54.35378051,207.79,207.78,0.2]
[1759224803622,52.12814514,207.79,207.78,0.2]
[1759224803823,54.35378051,207.79,207.78,0.2]
[1759224805846,59.1686005,207.79,207.78,0.2]
[1759224809156,61.39423587,207.79,207.78,0.2]
[1759224809328,61.39423587,207.79,207.78,1e-08]
[1759224809946,56.94296513,207.79,207.78,1e-08]
[1759224810150,61.39423587,207.79,207.78,1e-08]
[1759224810326,64.07646198,207.79,207.78,1e-08]
[1759224812555,58.3696645,207.79,207.78,1e-08]
[1759224813358,64.07646198,207.79,207.78,1e-08]
[1759224819162,56.94296513,207.79,207.78,1e-08]
[1759224819331,64.07646198,207.79,207.78,1e-08]
[1759224821147,20.8,207.76,207.7,0.2]
[1759224821334,1.42669937,207.71,207.7,0.2]
[1759224821543,48.72229338,207.71,207.7,0.2]
[1759224822862,53.53669807,207.71,207.7,0.2]
[1759224826346,53.53669807,207.71,207.7,1e-08]
[1759224826538,13.59559401,207.67,207.64,0.2]
[1759224826762,15.02229338,207.65,207.64,0.2]
[1759224828168,19.83808919,207.65,207.64,0.2]
[1759224829269,40.63808919,207.65,207.64,0.2]
[1759224829573,45.65553824,207.65,207.64,0.2]
[1759224830068,40.63808919,207.65,207.64,0.2]
[1759224830278,42.57003635,207.65,207.64,0.2]
[1759224831464,76.29003635,207.65,207.64,0.2]
[1759224833063,76.29003635,207.65,207.61,0.2]
[1759224833064,88.32952587,207.65,207.61,0.2]
[1759224833246,15.02229338,207.62,207.61,0.2]
[1759224833446,48.74229338,207.62,207.61,0.2]
[1759224834161,53.55878504,207.62,207.61,0.2]
[1759224836176,52.13208567,207.62,207.61,0.2]
[1759224836379,53.55878504,207.62,207.61,0.2]
[1759224841390,74.35878504,207.62,207.61,0.2]
[1759224851698,39.21208567,207.62,207.61,0.2]
[1759224851883,52.15208567,207.62,207.61,0.2]
[1759224852593,18.41208567,207.62,207.61,0.2]
[1759224852798,4.81631029,207.63,207.61,0.2]
[1759224852996,33.74,207.62,207.61,0.2]
[1759224854183,2.51810599,207.68,207.61,0.2]
[1759224854400,13.59559401,207.66,207.61,0.2]
[1759224854585,38.53579581,207.65,207.61,0.2]
[1759224859985,13.59559401,207.66,207.61,5.01670959]
[1759224860186,4.81538527,207.67,207.61,5.01670959]
[1759224860388,13.59559401,207.69,207.61,5.01670959]
[1759224860607,33.72,207.68,207.61,5.01670959]
[1759224861116,4.81486831,207.69,207.61,17.05851875]
[1759224861289,38.53486831,207.69,207.61,17.05851875]
[1759224861487,38.53486831,207.69,207.61,5.01670959]
[1759224861688,13.59559401,207.68,207.61,5.01670959]
[1759224861899,33.72,207.67,207.61,5.01670959]
[1759224864412,38.5354303,207.67,207.61,5.01670959]
[1759224866613,1.42669937,207.65,207.61,0.2]
[1759224866800,15.02229338,207.66,207.61,0.2]
[1759224867386,13.59559401,207.66,207.61,0.2]
[1759224868294,13.59559401,207.66,207.61,5.01665817]
[1759224869516,18.41116116,207.66,207.61,5.01665817]
[1759224870215,18.41116116,207.66,207.61,0.2]
[1759224870690,20.64175218,207.66,207.61,0.2]
[1759224871010,18.41116116,207.66,207.61,0.2]
[1759224872114,18.41116116,207.66,207.61,5.01659717]
[1759224872320,13.59559401,207.66,207.61,5.01659717]
[1759224873119,18.41122291,207.66,207.61,0.2]
[1759224873891,20.64181393,207.66,207.61,0.2]
[1759224875398,2.23059102,207.63,207.61,0.2]
[1759224875597,33.72,207.62,207.61,0.2]
[1759224875802,35.95059102,207.62,207.61,0.2]
[1759224876017,49.54618503,207.62,207.61,0.2]
[1759224877310,54.36267669,207.62,207.61,0.2]
[1759224877506,52.13208567,207.62,207.61,0.2]
[1759224878211,54.36267669,207.62,207.61,0.2]
[1759224881105,33.72,207.62,207.61,0.2]
[1759224882122,4.81617218,207.64,207.61,0.2]
[1759224882123,33.72,207.63,207.61,0.2]
[1759224882825,38.53628785,207.63,207.61,0.2]
[1759224885336,15.82618503,207.62,207.61,1e-08]
[1759224885711,13.59559401,207.62,207.61,1e-08]
[1759224885902,15.82618503,207.62,207.61,1e-08]
[1759224886715,20.64267669,207.62,207.61,1e-08]
[1759224888324,54.36267669,207.62,207.61,1e-08]
[1759224891138,56.88151609,207.62,207.61,1e-08]
[1759224894738,23.16151609,207.62,207.61,1e-08]
[1759224895042,56.88151609,207.62,207.61,1e-08]
[1759224898743,61.70030603,207.62,207.61,1e-08]
[1759224899846,54.36267669,207.62,207.61,1e-08]
[1759224901241,52.13208567,207.62,207.61,1e-08]
[1759224901427,54.36267669,207.62,207.61,1e-08]
[1759224902041,52.13208567,207.62,207.61,1e-08]
[1759224907463,18.41208567,207.62,207.61,1e-08]
[1759224907651,52.13208567,207.62,207.61,1e-08]
[1759224910145,54.36267669,207.62,207.61,1e-08]
[1759224911141,56.29509051,207.62,207.61,1e-08]
[1759224914662,58.81393482,207.62,207.61,1e-08]
[1759224915479,13.59559401,207.58,207.57,1e-08]
[1759224915766,34.39559401,207.51,207.5,0.2]
[1759224915974,70.34618503,207.51,207.5,0.2]
[1759224916765,68.11559401,207.51,207.5,0.2]
[1759224916939,70.34618503,207.51,207.5,0.2]
[1759224917147,75.16522989,207.51,207.5,0.2]
[1759224917544,72.93463887,207.51,207.5,0.2]
[1759224917762,75.16522989,207.51,207.5,0.2]
[1759224919071,72.93463887,207.51,207.5,0.2]
[1759224919277,75.16522989,207.51,207.5,0.2]
[1759224920466,72.93463887,207.51,207.5,0.2]
[1759224920779,75.16522989,207.51,207.5,0.2]
[1759224923459,75.16522989,207.51,207.5,1e-08]
[1759224926585,77.09876463,207.51,207.5,1e-08]
[1759224928886,41.14817361,207.51,207.5,1e-08]
[1759224929080,77.11876463,207.51,207.5,1e-08]
[1759224929973,43.37876463,207.51,207.5,1e-08]
[1759224930160,39.21463887,207.51,207.5,1e-08]
[1759224930352,75.18522989,207.51,207.5,1e-08]
[1759224930780,41.44522989,207.51,207.5,1e-08]
[1759224930963,72.95463887,207.51,207.5,1e-08]
[1759224931161,75.18522989,207.51,207.5,1e-08]
[1759224932187,47.33559401,207.51,207.5,1e-08]
[1759224932475,33.74,207.51,207.5,1e-08]
[1759224932681,18.41371012,207.55,207.5,1e-08]
[1759224932893,33.74,207.54,207.5,1e-08]
[1759224933886,38.55835595,207.54,207.5,1e-08]
[1759224935466,13.59559401,207.55,207.5,1e-08]
[1759224935681,33.74,207.54,207.5,1e-08]
[1759224935885,33.74,207.55,207.5,1e-08]
[1759224938188,38.55813525,207.55,207.5,1e-08]
[1759224940789,33.74,207.55,207.5,1e-08]
[1759224940978,33.72,207.55,207.5,1e-08]
[1759224942789,4.81781709,207.57,207.5,1e-08]
[1759224943095,33.72,207.56,207.5,1e-08]
[1759224944580,38.53795446,207.56,207.5,1e-08]
[1759224948896,1.42940642,207.55,207.5,1e-08]
[1759224949070,50.58266442,207.56,207.5,1e-08]
[1759224949268,1.42940642,207.55,207.5,1e-08]
[1759224949587,4.81834827,207.54,207.5,1e-08]
[1759224950901,18.29362536,207.54,207.5,1e-08]
[1759224951100,33.72,207.53,207.5,1e-08]
[1759224951401,1.42940642,207.52,207.5,1e-08]
[1759224952191,4.81904486,207.51,207.5,1e-08]
[1759224953488,4.81881264,207.52,207.5,1e-08]
[1759224956986,6.24821906,207.52,207.5,1e-08]
[1759224958493,4.81881264,207.52,207.5,1e-08]
[1759224961098,13.59559401,207.51,207.5,1e-08]
[1759224961304,15.02500043,207.51,207.5,1e-08]
[1759224962706,13.59559401,207.51,207.5,1e-08]
[1759224962885,19.84404529,207.51,207.5,1e-08]
[1759224963909,18.41463887,207.51,207.5,1e-08]
[1759224964296,19.84404529,207.51,207.5,1e-08]
[1759224965524,53.56404529,207.51,207.5,1e-08]
[1759224974046,13.59559401,207.47,207.45,0.2]
[1759224974319,48.74500043,207.46,207.45,0.2]
[1759224975991,53.56520673,207.46,207.45,0.2]
[1759224976901,59.28283241,207.46,207.45,1e-08]
[1759224977097,34.39559401,207.43,207.4,0.2]
[1759224977297,48.74500043,207.42,207.4,0.2]
[1759224978117,52.13672986,207.42,207.4,0.2]
[1759224978424,18.41672986,207.42,207.41,1e-08]
[1759224978603,53.58613628,207.42,207.41,1e-08]
[1759224978798,56.79404998,207.42,207.41,1e-08]
[1759224979320,19.84613628,207.42,207.41,1e-08]
[1759224979522,53.58613628,207.42,207.41,1e-08]
[1759224980695,52.15672986,207.42,207.41,1e-08]
[1759224981020,53.58613628,207.42,207.41,1e-08]
[1759224983218,53.60613628,207.42,207.41,1e-08]
[1759224986493,53.60613628,207.42,207.4,1e-08]
[1759224986716,15.02500043,207.41,207.4,1e-08]
[1759224986893,19.84636873,207.41,207.4,1e-08]
[1759224988516,53.58636873,207.41,207.4,1e-08]
[1759224989519,19.84636873,207.41,207.4,1e-08]
[1759224989707,53.58636873,207.41,207.4,1e-08]
[1759224992337,54.39431052,207.41,207.4,1e-08]
[1759224993933,34.39559401,207.39,207.38,1e-08]
[1759224994109,34.39559401,207.36,207.35,1e-08]
[1759224994312,13.59559401,207.35,207.3,0.2]
[1759224994521,49.61294222,207.34,207.3,0.2]
[1759224995216,54.43593826,207.34,207.3,0.2]
[1759224995927,56.95819953,207.34,207.3,0.2]
[1759224996125,23.17819953,207.34,207.3,0.2]
[1759224996432,56.95819953,207.34,207.3,0.2]
[1759224998313,56.93819953,207.34,207.3,0.2]
[1759225001134,54.70085132,207.34,207.3,0.2]
[1759225001334,56.93819953,207.34,207.3,0.2]
[1759225007740,34.39559401,207.31,207.3,0.2]
[1759225007939,70.39294222,207.31,207.3,0.2]
[1759225009841,75.2166362,207.31,207.3,0.2]
[1759225016154,72.97928799,207.31,207.3,0.2]
[1759225016448,75.2166362,207.31,207.3,0.2]
[1759225019254,77.15185475,207.31,207.3,0.2]
[1759225020046,80.35573811,207.31,207.3,0.2]
[1759225020734,80.35573811,207.31,207.3,1e-08]
[1759225020931,13.59559401,207.3,207.29,1e-08]
[1759225021124,19.03682558,207.3,207.29,1e-08]
[1759225021325,34.39559401,207.28,207.27,1e-08]
[1759225021531,75.21733434,207.28,207.27,1e-08]
[1759225021739,78.4212177,207.28,207.27,1e-08]
[1759225021946,83.44930174,207.28,207.27,1e-08]
[1759225023229,49.68930174,207.28,207.27,1e-08]
[1759225023430,103.44930174,207.28,207.27,1e-08]
[1759225025765,69.68930174,207.28,207.27,1e-08]
[1759225026065,103.44930174,207.28,207.27,1e-08]
[1759225026254,85.97267311,207.28,207.27,1e-08]
[1759225027139,52.21267311,207.28,207.27,1e-08]
[1759225027345,85.97267311,207.28,207.27,1e-08]
[1759225027652,31.41267311,207.28,207.27,1e-08]
[1759225027964,54.41733434,207.28,207.27,1e-08]
[1759225028259,56.94031989,207.28,207.27,1e-08]
[1759225031757,54.70297168,207.28,207.27,1e-08]
[1759225031958,49.87857956,207.28,207.27,1e-08]
[1759225032263,47.35559401,207.28,207.27,1e-08]
[1759225033338,52.17998613,207.28,207.27,1e-08]
[1759225035135,47.35559401,207.28,207.27,1e-08]
[1759225036155,52.17998613,207.28,207.27,1e-08]
[1759225036556,13.59559401,207.28,207.27,1e-08]
[1759225036871,52.17998613,207.28,207.27,1e-08]
[1759225038075,54.41733434,207.28,207.27,1e-08]
[1759225038946,56.94025135,207.28,207.27,1e-08]
[1759225039148,60.15324949,207.28,207.27,1e-08]
[1759225040337,64.97992649,207.28,207.27,1e-08]
[1759225042155,60.15324949,207.28,207.27,1e-08]
[1759225043173,26.39324949,207.28,207.27,1e-08]
[1759225043475,56.94025135,207.28,207.27,1e-08]
[1759225043684,60.15324949,207.28,207.27,1e-08]
[1759225047390,57.91590128,207.28,207.27,1e-08]
[1759225047568,60.15324949,207.28,207.27,1e-08]
[1759225048680,26.39324949,207.28,207.27,1e-08]
[1759225048863,52.17998613,207.28,207.27,1e-08]
[1759225052797,54.41733434,207.28,207.27,1e-08]
[1759225052968,52.17998613,207.28,207.27,1e-08]
[1759225057988,72.97998613,207.28,207.27,1e-08]
[1759225060080,56.82746261,207.28,207.27,1e-08]
[1759225060494,68.89420123,207.28,207.27,1e-08]
[1759225061190,71.41728782,207.28,207.27,1e-08]
[1759225061787,34.39559401,207.21,207.2,0.2]
[1759225061991,68.15559401,207.21,207.2,0.2]
[1759225062195,76.19625644,207.21,207.2,0.2]
[1759225064303,77.6290924,207.21,207.2,0.2]
[1759225066070,79.9699479,207.21,207.2,0.2]
[1759225066294,81.40278386,207.21,207.2,0.2]
[1759225067373,79.9699479,207.21,207.2,0.2]
[1759225067598,81.40278386,207.21,207.2,0.2]
[1759225067801,79.9699479,207.21,207.2,0.2]
[1759225067986,81.40278386,207.21,207.2,0.2]
[1759225069575,79.9699479,207.21,207.2,0.2]
[1759225069980,79.9699479,207.21,207.2,1e-08]
[1759225070189,101.40278386,207.21,207.2,1e-08]
[1759225070400,81.40278386,207.21,207.2,1e-08]
[1759225070778,101.40278386,207.21,207.2,1e-08]
[1759225071286,137.59794818,207.21,207.12,0.2]
[1759225071472,40.65631583,207.13,207.12,0.2]
[1759225071672,74.53631583,207.13,207.12,0.2]
[1759225072900,73.10347987,207.13,207.12,0.2]
[1759225073101,73.08347987,207.13,207.12,0.2]
[1759225073913,74.51631583,207.13,207.12,0.2]
[1759225074494,68.25559401,207.13,207.12,0.2]
[1759225075314,47.47559401,207.13,207.12,0.2]
[1759225075510,13.59559401,207.13,207.12,0.2]
[1759225077991,13.59559401,207.13,207.12,5.02811896]
[1759225079309,13.59559401,207.13,207.12,0.2]
[1759225079810,33.9,207.17,207.12,5.02811896]
[1759225079984,13.59559401,207.16,207.12,5.02811896]
[1759225080183,13.59559401,207.17,207.12,5.02811896]
[1759225080500,13.59559401,207.17,207.12,0.2]
[1759225080681,15.02842997,207.17,207.12,0.2]
[1759225080883,1.43283596,207.16,207.12,0.2]
[1759225081083,13.59559401,207.14,207.12,0.2]
[1759225081808,18.42330257,207.14,207.12,0.2]
[1759225082509,13.59559401,207.14,207.12,0.2]
[1759225085792,18.42325712,207.14,207.12,0.2]
[1759225086701,13.59559401,207.14,207.12,0.2]
[1759225087088,13.59559401,207.15,207.12,0.2]
[1759225088012,15.02842997,207.15,207.12,0.2]
[1759225088590,13.59559401,207.15,207.12,0.2]
[1759225088918,15.02842997,207.15,207.12,0.2]
[1759225089421,6.26048875,207.14,207.12,0.2]
[1759225089603,40.12048875,207.14,207.12,0.2]
[1759225090792,33.86,207.14,207.12,0.2]
[1759225091909,38.68767692,207.14,207.12,0.2]
[1759225092420,40.12051288,207.14,207.12,0.2]
[1759225093926,1.43283596,207.13,207.12,0.2]
[1759225094425,15.02842997,207.13,207.12,0.2]
[1759225095210,19.85631583,207.13,207.12,0.2]
[1759225098025,25.58765967,207.13,207.12,0.2]
[1759225098648,20.94830614,207.13,207.12,1e-08]
[1759225098824,31.31545649,207.13,207.12,1e-08]
[1759225099325,65.19545649,207.13,207.12,1e-08]
[1759225099931,34.39559401,207.09,207.06,0.2]
[1759225100146,35.82842997,207.07,207.06,0.2]
[1759225100326,48.90842997,207.07,207.06,0.2]
[1759225101339,1.43283596,207.07,207.06,0.2]
[1759225101535,48.90842997,207.07,207.06,0.2]
[1759225101728,52.30487879,207.07,207.06,0.2]
[1759225102048,53.73771475,207.07,207.06,0.2]
[1759225103446,53.73771475,207.07,206.99,0.2]
[1759225103447,39.22651188,207.0,206.99,0.2]
[1759225103748,68.27559401,207.0,206.99,0.2]
[1759225103931,34.39559401,207.0,206.99,0.2]
[1759225104249,68.31559401,207.0,206.99,0.2]
[1759225106050,34.39559401,207.0,206.99,0.2]
[1759225106553,68.31559401,207.0,206.99,0.2]
[1759225107550,47.51559401,207.0,206.99,0.2]
[1759225107749,13.59559401,207.0,206.99,5.03115126]
[1759225107946,13.59559401,207.0,206.99,0.2]
[1759225108755,13.59559401,207.03,206.99,5.03115126]
[1759225110656,13.59559401,207.05,206.99,17.10902941]
[1759225110865,47.49559401,207.05,206.99,17.10902941]
[1759225111664,35.33283596,207.15,207.02,20.8]
[1759225111961,56.13283596,207.15,207.02,20.8]
[1759225112151,35.33283596,207.15,207.02,20.8]
[1759225112343,13.59559401,207.14,207.02,20.8]
[1759225112546,34.0,207.14,207.02,20.8]
[1759225112729,34.0,207.14,207.03,16.90576244]
[1759225112931,1.43283596,207.12,207.03,16.90576244]
[1759225113135,13.59559401,207.11,207.03,16.90576244]
[1759225113368,34.0,207.14,207.03,16.90576244]
[1759225113369,15.02842997,207.13,207.03,16.90576244]
[1759225113541,13.59559401,207.13,207.03,16.90576244]
[1759225116861,13.59559401,207.13,207.03,149.90576244]
[1759225117167,20.8,207.16,207.03,174.05685165]
[1759225117357,34.0,207.15,207.06,20.8]
[1759225117866,13.59559401,207.14,207.06,20.8]
[1759225118275,13.59559401,207.16,207.06,20.8]
[1759225118844,13.59559401,207.16,207.07,16.90249673]
[1759225119173,15.83759208,207.14,207.07,4.82928478]
[1759225119369,13.59559401,207.12,207.07,4.82928478]
[1759225119690,13.59559401,207.12,207.02,4.83045116]
[1759225119844,13.59559401,207.1,207.02,4.83045116]
[1759225120580,13.59559401,207.08,207.02,4.83045116]
[1759225121071,13.59559401,207.08,207.01,12.07639813]
[1759225123263,20.66668444,207.08,207.0,4.83091787]
[1759225123450,18.42468637,207.08,207.0,4.83091787]
[1759225123651,15.83759208,207.08,207.0,4.83091787]
[1759225123957,13.59559401,207.06,207.0,16.90821255]
[1759225125648,13.59559401,207.08,207.0,16.90821255]
[1759225125959,13.59559401,207.1,207.0,149.90821255]
[1759225126685,15.83759208,207.1,207.0,149.90821255]
[1759225127074,13.59559401,207.1,207.0,149.90821255]
[1759225127271,15.83759208,207.1,207.0,149.90821255]
[1759225127679,13.59559401,207.1,207.0,149.90821255]
[1759225128265,15.83759208,207.1,207.0,149.90821255]
[1759225129667,13.59559401,207.1,207.0,149.90821255]
[1759225131483,18.42424202,207.1,207.0,149.90821255]
[1759225131705,20.66624009,207.1,207.0,16.90821255]
[1759225131998,18.42424202,207.1,207.0,16.90821255]
[1759225132370,13.59559401,207.1,207.0,16.90821255]
[1759225134978,15.83759208,207.1,207.0,16.90821255]
[1759225135179,13.59559401,207.09,207.0,16.90821255]
[1759225136498,13.59559401,207.1,207.0,16.90821255]
[1759225137592,13.59559401,207.1,207.0,149.90821255]
[1759225138578,20.8,207.12,207.0,149.90821255]
[1759225138579,20.8,207.12,207.0,16.90821255]
[1759225138787,2.24199807,207.11,207.0,16.90821255]
[1759225138988,54.74,207.12,207.0,16.90821255]
[1759225139189,2.24199807,207.11,207.0,16.90821255]
[1759225140189,7.07035606,207.11,207.0,16.90821255]
[1759225140393,23.04199807,207.09,207.0,16.90821255]
[1759225140710,2.24199807,207.06,206.99,5.03109959]
[1759225140892,36.18199807,207.06,206.99,5.03109959]
[1759225141606,7.07174933,207.05,206.99,0.2]
[1759225141809,2.24199807,207.04,206.99,0.2]
[1759225142111,7.07174933,207.05,206.99,0.2]
[1759225142498,15.83759208,207.04,206.99,0.2]
[1759225143595,20.66777351,207.04,206.99,0.2]
[1759225144182,18.42577544,207.04,206.99,0.2]
[1759225144397,18.42534881,207.05,206.99,5.03113316]
[1759225144591,20.66734688,207.05,206.99,5.03113316]
[1759225144879,13.59559401,207.03,206.99,5.03113316]
[1759225145276,13.59559401,207.03,206.99,17.10901131]
[1759225146080,34.39559401,207.06,206.99,17.10901131]
[1759225146282,13.59559401,207.04,206.99,17.10901131]
[1759225147505,13.59559401,207.04,206.99,5.03113316]
[1759225148086,13.59559401,207.05,206.99,5.03113316]
[1759225148297,47.53559401,207.05,206.99,17.10901131]
[1759225150916,13.59559401,207.05,206.99,17.10901131]
[1759225151508,15.83759208,207.05,206.99,17.10901131]
[1759225151890,2.24199807,207.04,206.99,17.10901131]
[1759225152092,13.59559401,207.05,206.99,17.10901131]
[1759225153613,15.83759208,207.05,206.99,17.10901131]
[1759225154194,2.24199807,207.04,206.99,5.03113316]
[1759225154394,2.24199807,207.03,206.99,5.03113316]
[1759225155003,2.24199807,207.04,206.99,5.03113316]
[1759225155886,2.24199807,207.02,206.99,0.2]
[1759225156205,2.24199807,207.01,206.99,0.2]
[1759225156602,15.83759208,207.0,206.99,0.2]
[1759225157515,13.59559401,207.03,206.99,5.03115126]
[1759225157722,47.55559401,207.05,206.99,5.03115126]
[1759225158014,13.59559401,207.05,206.99,17.10902941]
[1759225161121,15.83759208,207.05,206.99,17.10902941]
[1759225162213,4.8288616,207.09,206.99,17.10902941]
[1759225162406,2.24199807,207.06,206.99,17.10902941]
[1759225162729,2.24199807,207.09,206.99,150.10902941]
[1759225162926,13.59559401,207.09,206.99,150.10902941]
[1759225163501,13.59559401,207.09,206.99,174.26478572]
[1759225164021,15.83759208,207.09,206.99,174.26478572]
[1759225164225,13.59559401,207.11,206.99,174.26478572]
[1759225164524,25.62816704,207.12,206.99,174.26478572]
[1759225164525,13.59559401,207.09,206.99,41.26478572]
[1759225166425,13.52614804,207.09,206.99,41.26478572]
[1759225166616,15.76814611,207.09,206.99,41.26478572]
[1759225167722,13.52614804,207.09,206.99,41.26478572]
[1759225167914,15.76814611,207.09,206.99,41.26478572]
[1759225171024,13.52614804,207.09,206.99,41.26478572]
[1759225171328,20.8,207.15,207.02,20.8]
[1759225171505,13.59559401,207.13,207.03,33.92]
[1759225171999,33.92,207.17,207.06,20.8]
[1759225172206,13.59559401,207.15,207.06,20.8]
[1759225172422,13.59559401,207.15,207.07,16.90249673]
[1759225172728,2.24199807,207.16,207.07,16.90249673]
[1759225173435,6.25085477,207.24,207.07,16.90249673]
[1759225173436,13.59559401,207.23,207.07,41.04892064]
[1759225173612,13.59559401,207.17,207.07,41.04892064]
[1759225173938,2.24199807,207.18,207.07,41.04892064]
[1759225174528,2.24199807,207.19,207.1,20.8]
[1759225174728,13.59559401,207.18,207.1,20.8]
[1759225175133,13.59559401,207.21,207.1,20.8]
[1759225175332,13.59559401,207.18,207.1,20.8]
[1759225175518,2.24199807,207.19,207.1,20.8]
[1759225175715,13.59559401,207.21,207.1,20.8]
[1759225175931,2.24199807,207.19,207.1,20.8]
[1759225176233,1.43414194,207.18,207.1,54.7]
[1759225176411,1.43414194,207.19,207.1,54.7]
[1759225176614,1.43414194,207.22,207.11,41.04099269]
[1759225176814,1.43414194,207.2,207.11,55.79878907]
[1759225178215,34.39559401,207.25,207.11,55.79878907]
[1759225178415,1.43414194,207.2,207.11,55.79878907]
[1759225178712,1.43414194,207.19,207.11,55.79878907]
[1759225179115,13.59559401,207.23,207.11,55.79878907]
[1759225179425,1.43414194,207.15,207.11,65.61702866]
[1759225180415,1.43414194,207.16,207.11,65.61702866]
[1759225180639,13.59559401,207.2,207.11,65.61702866]
[1759225180830,1.43414194,207.17,207.11,65.61702866]
[1759225181135,5.73656776,207.24,207.11,50.85923228]
[1759225181136,13.59559401,207.24,207.11,50.85923228]
[1759225181339,13.59559401,207.24,207.14,20.8]
[1759225181547,1.43414194,207.23,207.14,20.8]
[1759225181717,1.43414194,207.23,207.15,16.8959691]
[1759225181920,1.43414194,207.23,207.16,33.96]
[1759225182533,13.59559401,207.24,207.16,33.96]
[1759225182733,1.43414194,207.23,207.16,33.96]
[1759225183415,20.9,207.27,207.16,33.96]
[1759225183726,13.59559401,207.26,207.16,33.96]
[1759225183923,1.43414194,207.22,207.17,16.89433797]
[1759225184838,1.43414194,207.18,207.13,12.06951575]
[1759225185037,1.43414194,207.16,207.13,12.06951575]
[1759225186731,13.59559401,207.21,207.13,12.06951575]
[1759225186932,13.59559401,207.21,207.13,145.06951575]
[1759225187134,13.59559401,207.22,207.13,145.06951575]
[1759225187333,1.43414194,207.19,207.13,145.06951575]
[1759225188142,1.43414194,207.19,207.13,149.89740161]
[1759225188340,1.43414194,207.21,207.13,41.03683095]
[1759225188750,1.43414194,207.22,207.13,41.03683095]
[1759225188960,1.43414194,207.23,207.16,20.8]
[1759225189126,1.43414194,207.26,207.17,34.02]
[1759225190247,1.43414194,207.26,207.18,16.89352253]
[1759225192350,1.43414194,207.26,207.18,41.02712615]
[1759225192547,13.69559401,207.27,207.18,41.02712615]
[1759225193050,1.43414194,207.26,207.18,41.02712615]
[1759225193248,13.69559401,207.27,207.18,41.02712615]
[1759225193455,1.43414194,207.26,207.18,41.02712615]
[1759225194134,1.43414194,207.26,207.18,174.02712615]